bitfinex-derivatives/quotes_SOLF0:USTF0_20241217
["timestamp","ask_amount","ask_price","bid_price","bid_amount"]
[1734437260929,2.2557,221.67,221.66,5.53]
[1734437263226,2.2556,221.68,221.66,5.53]
[1734437263435,2.38,221.71,221.66,5.53]
[1734437263932,13.13508992,221.73,221.66,5.53]
[1734437264330,2.2556,221.68,221.66,5.53]
[1734437264729,13.13508992,221.73,221.66,5.53]
[1734437265534,13.13508992,221.73,221.66,11.12]
[1734437265734,2.2557,221.67,221.66,11.12]
[1734437266028,15.39078992,221.67,221.66,11.12]
[1734437266627,2.2564,221.6,221.54,2.2569]
[1734437266827,10.75508992,221.64,221.52,13.13508992]
[1734437267032,10.75508992,221.64,221.53,4.75293211]
[1734437267232,2.2567,221.58,221.52,13.13508992]
[1734437267631,2.2567,221.58,221.52,10.75508992]
[1734437267829,2.2567,221.58,221.52,16.53508992]
[1734437269334,2.2567,221.57,221.52,16.53508992]
[1734437270327,2.2568,221.56,221.52,16.53508992]
[1734437271236,2.2568,221.56,221.52,18.79228992]
[1734437271632,2.38,221.63,221.53,4.75002463]
[1734437271633,2.2567,221.57,221.53,4.75002463]
[1734437271832,10.75508992,221.67,221.52,16.53508992]
[1734437272132,2.38,221.68,221.57,2.2567]
[1734437272539,2.38,221.68,221.58,3.0261]
[1734437272734,2.2562,221.62,221.58,3.0261]
[1734437274942,5.36403722,221.65,221.58,3.0261]
[1734437275145,2.2563,221.61,221.58,3.0261]
[1734437275338,2.2563,221.61,221.56,2.2568]
[1734437275533,2.2564,221.6,221.52,5.78]
[1734437275734,2.32,221.63,221.53,4.7531902]
[1734437275933,2.32,221.63,221.52,12.6671]
[1734437276135,2.2567,221.58,221.53,4.75314782]
[1734437276341,2.32,221.63,221.54,4.75335094]
[1734437276536,2.32,221.63,221.52,10.41]
[1734437276742,2.2565,221.6,221.53,4.75334047]
[1734437277040,2.2565,221.6,221.52,10.41]
[1734437277041,2.2565,221.6,221.55,2.2568]
[1734437277444,2.32,221.63,221.56,2.2567]
[1734437277642,5.36403722,221.65,221.55,2.32]
[1734437277841,5.36403722,221.65,221.56,6.24178785]
[1734437278042,2.2564,221.6,221.55,4.5768]
[1734437278543,2.2566,221.58,221.55,2.32]
[1734437278938,2.2566,221.58,221.52,11.8984]
[1734437279140,2.2566,221.58,221.53,4.75441338]
[1734437279345,2.2566,221.58,221.52,11.8984]
[1734437279647,2.2566,221.58,221.52,14.1555]
[1734437280151,2.2567,221.57,221.52,14.1555]
[1734437280353,10.75508992,221.64,221.52,14.1555]
[1734437280658,2.2565,221.59,221.53,2.2571]
[1734437280948,2.32,221.67,221.55,10.75508992]
[1734437281243,2.2558,221.66,221.58,10.75508992]
[1734437281639,5.3646995,221.69,221.61,2.2562]
[1734437281846,2.2561,221.63,221.53,2.32]
[1734437282145,2.2561,221.63,221.54,15.50656998]
[1734437282353,2.2561,221.63,221.57,2.2566]
[1734437282653,2.2561,221.63,221.54,10.75508992]
[1734437282947,2.2559,221.65,221.57,10.75508992]
[1734437283251,10.75508992,221.7,221.58,7.06888565]
[1734437283454,2.2558,221.66,221.61,2.2562]
[1734437285049,2.2558,221.66,221.6,5.3114]
[1734437285750,2.256,221.64,221.6,3.055]
[1734437286151,2.2557,221.67,221.6,3.055]
[1734437286350,16.12304042,221.7,221.6,3.055]
[1734437286745,2.2557,221.67,221.6,5.3113]
[1734437286945,16.12304042,221.7,221.6,3.055]
[1734437287244,16.12304042,221.7,221.61,4.74321516]
[1734437287245,10.75508992,221.7,221.61,4.74321516]
[1734437287444,2.32,221.73,221.62,6.99900484]
[1734437287445,13.07508992,221.73,221.62,6.99900484]
[1734437287647,13.07508992,221.73,221.63,2.32]
[1734437288051,2.2555,221.69,221.63,2.32]
[1734437288448,13.07508992,221.73,221.63,2.32]
[1734437288653,2.2557,221.67,221.63,2.32]
[1734437289148,10.75508992,221.7,221.61,3.7599]
[1734437289149,2.2558,221.66,221.61,1.5036]
[1734437289345,10.75508992,221.7,221.61,1.5036]
[1734437289947,2.2556,221.68,221.62,2.2561]
[1734437291453,5.48020404,221.72,221.63,2.2561]
[1734437291863,5.48020404,221.72,221.61,1.5036]
[1734437292052,2.2557,221.68,221.63,5.89]
[1734437292257,5.48020404,221.72,221.63,5.89]
[1734437292554,10.75508992,221.7,221.63,5.89]
[1734437293162,2.2559,221.65,221.63,5.89]
[1734437293753,2.256,221.64,221.63,5.89]
[1734437296162,13.01108992,221.64,221.63,5.89]
[1734437298265,10.75508992,221.64,221.54,5.78]
[1734437298464,2.2568,221.57,221.54,5.78]
[1734437298964,2.32,221.63,221.54,5.78]
[1734437299168,2.2564,221.61,221.54,8.037]
[1734437299369,10.75508992,221.64,221.54,5.78]
[1734437299966,2.2563,221.61,221.54,8.037]
[1734437300167,2.2563,221.61,221.54,5.78]
[1734437300367,2.32,221.64,221.55,4.75623355]
[1734437300562,2.2564,221.6,221.54,2.257]
[1734437300768,13.07508992,221.64,221.51,12.26828992]
[1734437300968,13.07508992,221.64,221.52,4.75648195]
[1734437301162,13.07508992,221.64,221.51,12.26828992]
[1734437301163,13.07508992,221.64,221.53,7.01358195]
[1734437301467,13.07508992,221.64,221.53,2.2571]
[1734437301667,2.2564,221.61,221.55,2.2569]
[1734437302070,2.2564,221.61,221.55,4.5769]
[1734437302672,2.2564,221.61,221.56,4.75889206]
[1734437302874,2.2562,221.62,221.55,2.32]
[1734437303062,5.53409736,221.71,221.56,4.75889121]
[1734437303063,2.32,221.66,221.56,4.75889121]
[1734437303268,2.32,221.66,221.55,2.32]
[1734437303465,2.2563,221.62,221.56,7.01758624]
[1734437303668,2.32,221.66,221.57,4.76078624]
[1734437303970,2.32,221.66,221.56,2.2568]
[1734437303971,2.2565,221.59,221.58,4.76078624]
[1734437304176,2.32,221.66,221.55,2.32]
[1734437305274,2.2564,221.6,221.56,4.76151492]
[1734437305472,2.2564,221.6,221.55,2.32]
[1734437305677,2.2564,221.6,221.56,4.76190333]
[1734437305975,2.2564,221.6,221.57,4.76190333]
[1734437306178,2.2564,221.6,221.55,4.5769]
[1734437306371,2.2564,221.6,221.56,4.76213632]
[1734437306568,2.2565,221.59,221.57,4.76213632]
[1734437306772,2.2565,221.59,221.55,2.32]
[1734437307075,2.2565,221.59,221.56,4.76232029]
[1734437307278,2.2565,221.59,221.57,4.76245136]
[1734437307474,2.2565,221.59,221.55,4.5769]
[1734437307676,2.2565,221.59,221.56,4.76238293]
[1734437307876,2.28,221.66,221.57,4.76238293]
[1734437308081,2.28,221.66,221.56,2.2568]
[1734437308082,2.2565,221.6,221.56,2.2568]
[1734437308375,10.75508992,221.67,221.57,4.76274213]
[1734437308582,10.75508992,221.67,221.58,6.21916092]
[1734437308873,10.75508992,221.67,221.58,1.4572]
[1734437309074,2.2562,221.62,221.59,4.76153313]
[1734437309279,2.2562,221.62,221.6,4.76153313]
[1734437309481,2.2562,221.62,221.58,3.7138]
[1734437309776,2.2562,221.62,221.59,4.76221066]
[1734437309977,2.2562,221.62,221.58,3.7138]
[1734437309978,2.2562,221.62,221.6,4.76221066]
[1734437310179,2.2562,221.62,221.58,10.59951502]
[1734437310379,2.2562,221.62,221.59,4.76265768]
[1734437310576,2.2562,221.62,221.6,4.76265768]
[1734437310876,2.2562,221.62,221.58,10.59951502]
[1734437311078,2.2562,221.62,221.59,4.76330089]
[1734437311273,9.14201502,221.61,221.6,4.76330089]
[1734437311474,6.88571502,221.61,221.54,1.5307]
[1734437311673,6.88571502,221.58,221.54,1.5307]
[1734437314081,2.2569,221.56,221.54,1.5307]
[1734437314478,2.28,221.65,221.55,6.88571502]
[1734437314671,6.88571502,221.63,221.55,6.88571502]
[1734437314878,6.88571502,221.63,221.56,4.76331361]
[1734437315170,6.88571502,221.63,221.55,6.88571502]
[1734437315371,2.2564,221.6,221.56,4.76350209]
[1734437315572,2.2564,221.6,221.55,9.14261502]
[1734437315778,2.28,221.65,221.56,4.76343238]
[1734437315974,6.88571502,221.62,221.55,6.88571502]
[1734437316179,6.88571502,221.62,221.56,4.76331799]
[1734437316379,6.88571502,221.62,221.55,6.88571502]
[1734437316575,5.42774647,221.66,221.56,7.0202045]
[1734437316883,6.88571502,221.63,221.56,2.2567]
[1734437317076,2.2562,221.62,221.56,2.2567]
[1734437317381,2.28,221.65,221.55,6.88571502]
[1734437317581,2.28,221.65,221.57,4.76340143]
[1734437317782,6.88571502,221.62,221.55,6.88571502]
[1734437317982,6.88571502,221.62,221.56,4.76332158]
[1734437318182,6.88571502,221.62,221.57,4.76332158]
[1734437318381,6.88571502,221.62,221.55,6.88571502]
[1734437318577,6.88571502,221.62,221.56,4.76342115]
[1734437318777,6.88571502,221.62,221.55,6.88571502]
[1734437318976,6.88571502,221.62,221.56,4.76346367]
[1734437319189,6.88571502,221.62,221.55,6.88571502]
[1734437319376,2.2563,221.61,221.56,4.76350831]
[1734437319681,2.2563,221.61,221.56,2.2568]
[1734437320285,2.2563,221.61,221.57,2.2567]
[1734437320486,6.88571502,221.64,221.57,2.2567]
[1734437320487,2.2562,221.62,221.57,2.2567]
[1734437320785,6.88571502,221.64,221.56,9.14251502]
[1734437320985,2.2564,221.61,221.56,9.14251502]
[1734437321179,2.2564,221.61,221.56,2.2568]
[1734437321375,2.2564,221.61,221.56,9.14251502]
[1734437321575,2.2564,221.61,221.57,4.76333461]
[1734437321782,2.2564,221.61,221.56,9.14251502]
[1734437321982,2.2564,221.61,221.57,4.76344944]
[1734437322186,2.2564,221.61,221.56,9.14251502]
[1734437322387,2.2564,221.61,221.57,4.76343691]
[1734437322581,2.2564,221.61,221.58,6.88571502]
[1734437322783,6.88571502,221.67,221.6,6.88571502]
[1734437322981,6.88571502,221.69,221.62,6.88571502]
[1734437323179,6.88571502,221.69,221.64,2.2559]
[1734437323882,4.5088,221.8,221.64,2.2559]
[1734437323883,6.88571502,221.71,221.65,2.2559]
[1734437324086,9.14101502,221.71,221.65,2.2559]
[1734437326080,2.2554,221.7,221.65,2.2559]
[1734437326585,2.28,221.74,221.63,1.5176]
[1734437326586,9.14121502,221.69,221.63,1.5176]
[1734437327188,9.14121502,221.69,221.63,3.7737]
[1734437327383,2.2556,221.68,221.63,1.5176]
[1734437329093,9.14141502,221.67,221.63,1.5176]
[1734437329279,6.88571502,221.67,221.63,1.5176]
[1734437329484,6.88571502,221.67,221.6,7.5727]
[1734437329787,2.2559,221.65,221.6,7.5727]
[1734437329984,2.2559,221.65,221.6,5.3163]
[1734437330391,2.256,221.64,221.6,5.3163]
[1734437331093,6.88571502,221.63,221.6,1.5889]
[1734437331289,6.88571502,221.61,221.58,5.37]
[1734437331890,2.2564,221.6,221.58,5.37]
[1734437336184,2.2561,221.64,221.58,12.25571502]
[1734437336385,6.88571502,221.67,221.6,6.88571502]
[1734437336584,6.88571502,221.69,221.62,6.88571502]
[1734437336796,2.2558,221.66,221.62,6.88571502]
[1734437337188,6.88571502,221.69,221.62,6.88571502]
[1734437337590,2.2561,221.64,221.59,2.26]
[1734437337890,6.88571502,221.67,221.6,4.76337137]
[1734437338088,6.88571502,221.67,221.59,9.14571502]
[1734437338289,2.2562,221.63,221.6,4.76391789]
[1734437338493,2.2562,221.63,221.59,9.14571502]
[1734437338699,2.2562,221.63,221.6,4.76391883]
[1734437338893,2.2562,221.63,221.59,9.14571502]
[1734437339194,2.2562,221.63,221.6,4.76392821]
[1734437339386,2.2562,221.63,221.59,9.14571502]
[1734437339589,2.2559,221.65,221.61,6.88571502]
[1734437341094,6.88571502,221.67,221.59,2.26]
[1734437341293,6.88571502,221.65,221.58,7.63]
[1734437341497,2.2563,221.62,221.59,4.76392385]
[1734437341794,6.88571502,221.63,221.58,7.63]
[1734437342197,2.2565,221.59,221.58,5.37]
[1734437342393,9.14221502,221.59,221.58,5.37]
[1734437344002,2.2565,221.59,221.58,5.37]
[1734437345501,2.2573,221.52,221.46,2.26]
[1734437345702,2.2573,221.52,221.47,4.76406638]
[1734437345901,2.2573,221.52,221.48,4.76406638]
[1734437346106,2.2573,221.52,221.49,4.76406638]
[1734437346307,2.26,221.56,221.45,21.5069334]
[1734437346507,2.26,221.56,221.46,4.76265424]
[1734437346702,2.26,221.56,221.47,4.76265424]
[1734437346902,2.2573,221.52,221.48,4.76265424]
[1734437347108,2.2573,221.52,221.46,4.57]
[1734437347304,2.2573,221.52,221.47,4.76110144]
[1734437347511,2.2573,221.52,221.48,4.76110144]
[1734437347712,2.2573,221.52,221.46,4.57]
[1734437348007,2.26,221.56,221.47,4.76111321]
[1734437348210,2.2573,221.51,221.48,4.76111321]
[1734437348401,2.2573,221.51,221.46,4.57]
[1734437348605,2.2569,221.56,221.48,10.76659384]
[1734437348802,13.02659384,221.62,221.5,2.2574]
[1734437349110,2.26,221.63,221.51,15.5258717]
[1734437349305,2.26,221.63,221.52,2.2572]
[1734437349908,2.2565,221.59,221.52,2.2572]
[1734437350212,2.26,221.63,221.53,7.01544488]
[1734437350513,5.47130268,221.62,221.51,10.76659384]
[1734437350708,5.47130268,221.62,221.52,4.75850747]
[1734437350901,2.2567,221.58,221.51,10.76659384]
[1734437351104,5.47130268,221.62,221.52,4.75850211]
[1734437351410,5.47130268,221.62,221.53,4.75850211]
[1734437351606,5.47130268,221.62,221.51,13.02659384]
[1734437351607,16.23789652,221.62,221.51,13.02659384]
[1734437352210,16.23789652,221.62,221.52,4.75842196]
[1734437352407,2.2569,221.56,221.51,2.26]
[1734437352612,16.23789652,221.62,221.51,2.26]
[1734437353114,10.76659384,221.59,221.48,10.76659384]
[1734437353410,2.26,221.58,221.46,6.83]
[1734437353610,2.2572,221.52,221.47,4.75809878]
[1734437353810,2.2572,221.52,221.46,4.57]
[1734437354010,10.76659384,221.56,221.46,4.57]
[1734437354305,10.76659384,221.53,221.46,4.57]
[1734437354511,2.26,221.52,221.46,4.57]
[1734437354713,10.76659384,221.5,221.46,4.57]
[1734437355111,2.2577,221.47,221.46,4.57]
[1734437357215,4.5177,221.47,221.46,4.57]
[1734437357812,15.28429384,221.47,221.46,4.57]
[1734437358006,15.28429384,221.47,221.34,10.76659384]
[1734437358007,2.2581,221.44,221.34,10.76659384]
[1734437358210,13.02659384,221.47,221.33,6.8498]
[1734437358410,13.02659384,221.47,221.35,4.7498889]
[1734437358712,2.26,221.46,221.36,10.76659384]
[1734437358906,2.26,221.46,221.38,2.2586]
[1734437359110,2.26,221.46,221.38,7.1586]
[1734437359506,2.26,221.47,221.38,4.9]
[1734437360316,2.2581,221.44,221.38,4.9]
[1734437360808,5.47919208,221.5,221.41,2.2583]
[1734437361109,5.47919208,221.5,221.38,7.16]
[1734437361110,2.26,221.5,221.42,12.31579384]
[1734437361315,2.26,221.5,221.43,1.5657]
[1734437361715,4.5175,221.5,221.43,1.5657]
[1734437363214,2.2575,221.5,221.43,1.5657]
[1734437363409,10.76659384,221.54,221.43,1.5657]
[1734437363611,2.2574,221.5,221.43,3.8237]
[1734437363817,10.76659384,221.57,221.43,5.3485]
[1734437364008,10.76659384,221.57,221.46,2.2578]
[1734437364009,2.2571,221.53,221.46,2.2578]
[1734437364215,2.26,221.55,221.43,5.3485]
[1734437364615,10.76659384,221.57,221.43,5.3485]
[1734437364818,2.26,221.56,221.43,5.3485]
[1734437365013,2.2571,221.53,221.46,2.2578]
[1734437365622,2.26,221.55,221.46,2.2578]
[1734437365822,2.26,221.55,221.45,2.2579]
[1734437366114,2.26,221.55,221.43,5.3485]
[1734437366320,10.76659384,221.54,221.43,3.0885]
[1734437366520,10.76659384,221.51,221.43,1.5657]
[1734437366722,2.26,221.5,221.43,1.5657]
[1734437366917,2.258,221.45,221.43,1.5657]
[1734437367117,2.26,221.5,221.43,1.5657]
[1734437367312,2.26,221.5,221.42,1.5492]
[1734437367520,10.76659384,221.48,221.38,7.16]
[1734437368021,2.2582,221.43,221.38,7.16]
[1734437368717,2.26,221.5,221.38,7.16]
[1734437369122,2.2578,221.47,221.38,7.16]
[1734437369322,2.26,221.5,221.38,9.4186]
[1734437369724,2.2578,221.47,221.38,7.16]
[1734437369920,10.76659384,221.51,221.38,7.16]
[1734437369921,13.02659384,221.51,221.43,2.2581]
[1734437370222,2.26,221.51,221.43,2.2581]
[1734437370417,2.26,221.51,221.39,10.76659384]
[1734437370418,2.26,221.51,221.4,1.4692]
[1734437370623,2.26,221.51,221.45,2.2579]
[1734437370814,2.26,221.51,221.41,2.9762]
[1734437371016,2.2575,221.5,221.44,2.258]
[1734437371419,2.2573,221.51,221.44,2.258]
[1734437371618,7.59568329,221.53,221.44,2.258]
[1734437371619,2.26,221.53,221.44,2.26]
[1734437371928,10.76659384,221.57,221.45,10.76659384]
[1734437372227,2.26,221.58,221.49,2.2575]
[1734437372527,7.57562541,221.58,221.45,10.76659384]
[1734437372727,5.31562541,221.58,221.48,10.76659384]
[1734437373025,13.02659384,221.6,221.49,2.26]
[1734437373429,2.2569,221.56,221.5,2.2574]
[1734437373919,2.2566,221.58,221.51,2.2572]
[1734437374125,2.2566,221.58,221.52,1.5942]
[1734437374328,2.2566,221.58,221.52,3.1728]
[1734437374628,2.26,221.61,221.52,3.1728]
[1734437374830,2.2565,221.59,221.52,3.1728]
[1734437375928,2.26,221.61,221.52,3.1728]
[1734437376526,13.02659384,221.63,221.52,3.1728]
[1734437377727,2.2569,221.56,221.52,3.1728]
[1734437378124,10.76659384,221.6,221.52,3.1728]
[1734437380433,2.257,221.55,221.52,3.1728]
[1734437383328,2.26,221.58,221.52,3.1728]
[1734437383630,5.47455489,221.62,221.52,3.1728]
[1734437383631,2.2568,221.57,221.52,3.1728]
[1734437383931,2.2568,221.57,221.52,5.4299]
[1734437384129,2.2568,221.56,221.52,3.1728]
[1734437384330,2.2568,221.56,221.52,8.4028]
[1734437385837,2.26,221.6,221.52,8.4028]
[1734437386933,2.2571,221.54,221.52,8.4028]
[1734437387935,2.2571,221.53,221.52,8.4028]
[1734437390031,10.76659384,221.6,221.52,8.4028]
[1734437390235,2.26,221.59,221.52,8.4028]
[1734437391431,2.26,221.59,221.52,6.8086]
[1734437391432,2.2571,221.53,221.52,6.8086]
[1734437393639,2.26,221.59,221.52,6.8086]
[1734437393835,9.15138094,221.59,221.52,6.8086]
[1734437394431,2.257,221.55,221.52,6.8086]
[1734437397236,6.89138094,221.55,221.52,5.23]
[1734437397435,9.14848094,221.53,221.52,5.23]
[1734437399236,2.2571,221.53,221.52,5.23]
[1734437399442,9.14848094,221.53,221.52,5.23]
[1734437400941,2.2571,221.53,221.52,5.23]
[1734437401141,4.4771,221.53,221.52,5.23]
[1734437402641,251.342776,221.67,221.52,5.23]
[1734437402939,1.5578,221.7,221.58,6.89138094]
[1734437403139,2.2558,221.66,221.53,3.1028]
[1734437403340,6.89138094,221.64,221.54,4.76075949]
[1734437403540,6.89138094,221.64,221.58,6.89138094]
[1734437403737,2.22,221.66,221.58,6.89138094]
[1734437403738,9.11138094,221.66,221.58,6.89138094]
[1734437403933,12.26525155,221.68,221.62,6.89138094]
[1734437404139,2.22,221.67,221.62,6.89138094]
[1734437404444,2.2556,221.69,221.62,6.89138094]
[1734437404639,4.4756,221.69,221.62,6.89138094]
[1734437405642,2.2556,221.68,221.62,6.89138094]
[1734437406044,10.75413093,221.73,221.6,10.75413093]
[1734437406243,2.2555,221.7,221.6,10.75413093]
[1734437406444,2.2555,221.7,221.61,4.75548245]
[1734437406739,2.2555,221.7,221.62,4.75548245]
[1734437406740,2.2559,221.66,221.62,4.75548245]
[1734437406946,2.22,221.67,221.58,1.5557]
[1734437407133,12.97413093,221.67,221.59,4.75648472]
[1734437407336,12.97413093,221.67,221.58,1.5557]
[1734437407540,10.53047532,221.67,221.53,21.37533881]
[1734437407735,2.2558,221.67,221.56,10.75413093]
[1734437407935,2.22,221.67,221.57,4.75592486]
[1734437408135,2.22,221.67,221.59,10.75413093]
[1734437408343,2.2557,221.68,221.59,13.01063093]
[1734437408537,2.22,221.69,221.59,2.2565]
[1734437409440,2.2557,221.67,221.59,2.2565]
[1734437409646,2.22,221.68,221.59,2.2565]
[1734437409844,2.22,221.68,221.58,2.22]
[1734437410145,2.2563,221.61,221.54,3.67]
[1734437410340,2.2563,221.61,221.55,4.75290445]
[1734437410537,2.2563,221.61,221.54,14.42413093]
[1734437410850,2.2564,221.6,221.55,4.75290506]
[1734437411147,2.2564,221.6,221.54,16.68103093]
[1734437411542,2.2564,221.6,221.54,20.96103093]
[1734437412044,2.22,221.63,221.55,2.2568]
[1734437412045,2.2562,221.62,221.55,2.2568]
[1734437412243,2.22,221.63,221.55,2.2568]
[1734437412949,2.2564,221.61,221.55,2.2568]
[1734437413850,2.2562,221.62,221.56,2.2568]
[1734437414047,2.22,221.64,221.54,18.70413093]
[1734437415142,2.22,221.65,221.54,18.70413093]
[1734437416353,2.2563,221.62,221.54,20.96103093]
[1734437416547,2.22,221.65,221.54,18.70413093]
[1734437416945,2.2561,221.63,221.56,2.2567]
[1734437417747,2.2561,221.63,221.57,2.2566]
[1734437417951,2.2561,221.63,221.54,18.70413093]
[1734437418350,2.2561,221.63,221.55,4.75527477]
[1734437418553,2.2561,221.63,221.54,18.70413093]
[1734437418750,4.476,221.65,221.56,4.75527477]
[1734437419048,4.476,221.65,221.58,2.2566]
[1734437419253,2.256,221.64,221.58,2.2566]
[1734437419650,2.22,221.65,221.57,2.2566]
[1734437419857,2.2561,221.63,221.57,2.2566]
[1734437420054,2.2561,221.63,221.54,18.70413093]
[1734437420253,2.2561,221.63,221.55,4.75450184]
[1734437420456,2.2562,221.62,221.57,2.2567]
[1734437420753,2.22,221.65,221.57,2.2567]
[1734437421450,10.75413093,221.69,221.58,2.2566]
[1734437421451,2.2561,221.63,221.58,2.2566]
[1734437421758,2.22,221.66,221.55,10.75413093]
[1734437421951,2.2562,221.62,221.56,4.75395452]
[1734437422154,2.2562,221.62,221.57,7.01055452]
[1734437422352,2.2562,221.62,221.57,2.2566]
[1734437422554,2.2562,221.62,221.58,4.75344347]
[1734437422855,2.22,221.61,221.54,4.28]
[1734437423061,2.2569,221.55,221.54,4.28]
[1734437425359,2.258,221.45,221.36,5.38357277]
[1734437425559,2.22,221.47,221.37,4.75481733]
[1734437425755,10.75413093,221.5,221.38,4.75481733]
[1734437425756,2.22,221.48,221.38,4.75481733]
[1734437425953,2.2578,221.47,221.39,4.75481733]
[1734437426156,2.22,221.48,221.4,4.75481733]
[1734437426354,2.22,221.48,221.41,4.75481733]
[1734437426555,2.22,221.48,221.41,1.88]
[1734437427252,10.75413093,221.47,221.41,1.88]
[1734437428756,2.258,221.45,221.41,1.88]
[1734437428957,2.22,221.47,221.41,1.88]
[1734437429156,2.22,221.48,221.41,1.88]
[1734437429556,2.2578,221.46,221.41,1.88]
[1734437430354,2.22,221.48,221.41,1.88]
[1734437430955,2.2579,221.45,221.41,1.88]
[1734437431153,2.22,221.48,221.41,1.88]
[1734437431359,12.97413093,221.48,221.41,1.88]
[1734437431558,2.2581,221.44,221.41,1.88]
[1734437431760,12.97413093,221.48,221.41,1.88]
[1734437432355,2.2582,221.42,221.41,1.88]
[1734437433359,2.2581,221.43,221.41,1.88]
[1734437433959,2.2582,221.42,221.41,1.88]
[1734437434159,2.22,221.43,221.41,1.88]
[1734437434460,2.22,221.45,221.41,1.88]
[1734437434664,5.3103822,221.5,221.41,1.88]
[1734437435070,2.2578,221.46,221.41,1.88]
[1734437435366,2.22,221.49,221.41,1.88]
[1734437435567,2.22,221.5,221.42,2.2582]
[1734437435762,2.22,221.5,221.42,5.4231]
[1734437436166,16.08281556,221.54,221.42,3.1649]
[1734437436366,10.75413093,221.54,221.42,3.1649]
[1734437436665,2.2568,221.57,221.49,2.2574]
[1734437437663,10.75413093,221.59,221.46,10.75413093]
[1734437437961,10.75413093,221.65,221.52,10.75413093]
[1734437438164,2.2559,221.65,221.56,2.2567]
[1734437438370,12.97413093,221.68,221.56,2.22]
[1734437438764,18.30361121,221.68,221.56,2.22]
[1734437439361,10.75413093,221.62,221.53,4.6751]
[1734437439564,10.75413093,221.59,221.53,3.0999]
[1734437439760,10.75413093,221.59,221.48,2.22]
[1734437439761,12.97413093,221.59,221.48,2.22]
[1734437439960,2.2569,221.55,221.48,2.22]
[1734437440165,12.97413093,221.59,221.46,2.2578]
[1734437440166,10.75413093,221.56,221.46,2.22]
[1734437441566,2.2571,221.53,221.45,4.6944]
[1734437441769,10.75413093,221.56,221.45,6.9144]
[1734437442372,2.257,221.55,221.45,9.1722]
[1734437442563,2.257,221.55,221.45,6.9144]
[1734437442769,12.97413093,221.59,221.45,6.9144]
[1734437443166,2.2567,221.57,221.49,2.2575]
[1734437443570,2.2563,221.61,221.53,2.2571]
[1734437443874,2.2563,221.61,221.53,2.22]
[1734437444176,10.75413093,221.65,221.53,2.22]
[1734437444377,2.2566,221.59,221.53,2.22]
[1734437444774,2.2566,221.59,221.53,4.1]
[1734437445577,2.22,221.63,221.53,4.1]
[1734437445971,10.75413093,221.65,221.55,2.2569]
[1734437445972,12.97413093,221.65,221.55,2.2569]
[1734437446171,2.2567,221.58,221.53,1.88]
[1734437446376,10.75413093,221.62,221.53,1.88]
[1734437446573,10.75413093,221.59,221.53,1.88]
[1734437446778,12.97413093,221.59,221.53,1.88]
[1734437448077,2.2567,221.58,221.53,1.88]
[1734437448383,12.97413093,221.59,221.53,1.88]
[1734437449478,2.257,221.55,221.53,1.88]
[1734437450978,2.257,221.54,221.53,1.88]
[1734437452281,2.2569,221.55,221.53,1.88]
[1734437452775,12.97413093,221.59,221.53,1.88]
[1734437452975,2.2568,221.57,221.53,1.88]
[1734437453484,12.97413093,221.59,221.53,1.88]
[1734437454684,2.2568,221.57,221.53,1.88]
[1734437455181,12.97413093,221.59,221.53,1.88]
[1734437455486,2.2569,221.56,221.53,1.88]
[1734437455985,10.75413093,221.65,221.53,1.88]
[1734437456187,2.24,221.64,221.54,1.5497]
[1734437456577,2.24,221.64,221.55,3.0671]
[1734437456786,2.256,221.64,221.57,2.2566]
[1734437457782,2.2559,221.65,221.58,2.2566]
[1734437457977,2.24,221.67,221.55,13.82123093]
[1734437458481,10.75413093,221.71,221.58,10.75413093]